[Event "Titled Tuesday Blitz August 09 Early 2022"]
[White "Maiorov, Nikita"]
[Black "Federzoni, Enzo"]
[WhiteFideId "13501720"]
[BlackFideId "2173301"]
[WhiteElo "2409"]
[BlackElo "1949"]
[Result "1-0"]
[Round "04"]
[TimeControl "180+1"]
[Date "2022.08.09"]
[WhiteClock "0:00:12"]
[BlackClock "0:00:35"]

1. d4 {[%clk 0:03:00]}  Nf6 {[%clk 0:02:58]} 2. c4 {[%clk 0:03:00]}  e6 {[%clk 0:02:59]} 3. Nf3 {[%clk 0:02:58]}  Bb4+ {[%clk 0:02:59]} 4. Bd2 {[%clk 0:02:57]}  a5 {[%clk 0:02:59]} 5. g3 {[%clk 0:02:56]}  O-O {[%clk 0:02:59]} 6. Bg2 {[%clk 0:02:56]}  d6 {[%clk 0:02:53]} 7. O-O {[%clk 0:02:55]}  Qe7 {[%clk 0:02:49]} 8. Bc1 {[%clk 0:02:54]}  a4 {[%clk 0:02:45]} 9. a3 {[%clk 0:02:53]}  Ba5 {[%clk 0:02:43]} 10. Qxa4 {[%clk 0:02:53]}  Bd7 {[%clk 0:02:41]} 11. Qc2 {[%clk 0:02:52]}  b5 {[%clk 0:02:39]} 12. Nbd2 {[%clk 0:02:30]}  c5 {[%clk 0:02:35]} 13. dxc5 {[%clk 0:02:28]}  dxc5 {[%clk 0:02:35]} 14. Ne5 {[%clk 0:02:28]}  Ra7 {[%clk 0:02:29]} 15. Nxd7 {[%clk 0:02:27]}  Qxd7 {[%clk 0:02:28]} 16. cxb5 {[%clk 0:02:27]}  Qxb5 {[%clk 0:02:29]} 17. Nc4 {[%clk 0:02:27]}  Nc6 {[%clk 0:02:22]} 18. e3 {[%clk 0:02:26]}  Nd5 {[%clk 0:02:16]} 19. Nd6 {[%clk 0:02:06]}  Qb6 {[%clk 0:02:10]} 20. Ne4 {[%clk 0:02:04]}  Rc8 {[%clk 0:01:42]} 21. Rb1 {[%clk 0:01:53]}  Rac7 {[%clk 0:01:29]} 22. Qxc5 {[%clk 0:01:33]}  Qa6 {[%clk 0:01:25]} 23. a4 {[%clk 0:00:38]}  Ncb4 {[%clk 0:01:12]} 24. Qb5 {[%clk 0:00:37]}  Qa8 {[%clk 0:01:08]} 25. Nd6 {[%clk 0:00:37]}  Rc5 {[%clk 0:01:07]} 26. Qe2 {[%clk 0:00:33]}  R8c6 {[%clk 0:01:02]} 27. Nb5 {[%clk 0:00:27]}  Rc2 {[%clk 0:01:02]} 28. Qd1 {[%clk 0:00:27]}  Bb6 {[%clk 0:00:47]} 29. Nc3 {[%clk 0:00:18]}  R2xc3 {[%clk 0:00:33]} 30. bxc3 {[%clk 0:00:17]}  Nxc3 {[%clk 0:00:31]} 31. Qb3 {[%clk 0:00:15]}  Nxb1 {[%clk 0:00:31]} 32. Qxb4 {[%clk 0:00:15]}  Nc3 {[%clk 0:00:23]} 33. Qxb6 {[%clk 0:00:12]}  Rxb6 {[%clk 0:00:17]} 34. Bxa8 {[%clk 0:00:11]}  Ra6 {[%clk 0:00:18]} 35. Bf3 {[%clk 0:00:10]}  Rxa4 {[%clk 0:00:18]} 36. Bd2 {[%clk 0:00:10]}  Rc4 {[%clk 0:00:19]} 37. Rc1 {[%clk 0:00:09]}  Ne2+ {[%clk 0:00:17]} 38. Bxe2 {[%clk 0:00:08]}  Rxc1+ {[%clk 0:00:18]} 39. Bxc1 {[%clk 0:00:08]}  f6 {[%clk 0:00:19]} 40. Bd2 {[%clk 0:00:09]}  Kf7 {[%clk 0:00:20]} 41. Be1 {[%clk 0:00:09]}  Kg6 {[%clk 0:00:21]} 42. Kf1 {[%clk 0:00:10]}  Kf5 {[%clk 0:00:21]} 43. Bf3 {[%clk 0:00:10]}  Ke5 {[%clk 0:00:22]} 44. h3 {[%clk 0:00:10]}  Kd6 {[%clk 0:00:23]} 45. g4 {[%clk 0:00:10]}  Ke7 {[%clk 0:00:24]} 46. Ke2 {[%clk 0:00:11]}  Kf7 {[%clk 0:00:25]} 47. Bd2 {[%clk 0:00:11]}  Ke7 {[%clk 0:00:26]} 48. Be1 {[%clk 0:00:12]}  Kd6 {[%clk 0:00:27]} 49. Bg2 {[%clk 0:00:12]}  Ke5 {[%clk 0:00:28]} 50. Bh1 {[%clk 0:00:13]}  Kd6 {[%clk 0:00:29]} 51. Bg2 {[%clk 0:00:13]}  Ke7 {[%clk 0:00:30]} 52. f4 {[%clk 0:00:13]}  h5 {[%clk 0:00:30]} 53. Kd3 {[%clk 0:00:13]}  hxg4 {[%clk 0:00:31]} 54. hxg4 {[%clk 0:00:14]}  Kf7 {[%clk 0:00:30]} 55. Bb4 {[%clk 0:00:14]}  Kg6 {[%clk 0:00:30]} 56. Be4+ {[%clk 0:00:14]}  Kh6 {[%clk 0:00:31]} 57. Be7 {[%clk 0:00:14]}  f5 {[%clk 0:00:31]} 58. g5+ {[%clk 0:00:13]}  Kg6 {[%clk 0:00:30]} 59. Bc6 {[%clk 0:00:14]}  Kf7 {[%clk 0:00:30]} 60. Bd6 {[%clk 0:00:15]}  Kg6 {[%clk 0:00:30]} 61. Be8+ {[%clk 0:00:14]}  Kh7 {[%clk 0:00:30]} 62. Bf7 {[%clk 0:00:15]}  Kh8 {[%clk 0:00:30]} 63. Bxe6 {[%clk 0:00:15]}  g6 {[%clk 0:00:30]} 64. Kd4 {[%clk 0:00:15]}  Kh7 {[%clk 0:00:31]} 65. Kd5 {[%clk 0:00:15]}  Kg7 {[%clk 0:00:31]} 66. Kc6 {[%clk 0:00:16]}  Kh7 {[%clk 0:00:32]} 67. Kd7 {[%clk 0:00:16]}  Kg7 {[%clk 0:00:33]} 68. Ke8 {[%clk 0:00:16]}  Kh7 {[%clk 0:00:34]} 69. Bd5 {[%clk 0:00:15]}  Kg7 {[%clk 0:00:35]} 70. Bc5 {[%clk 0:00:14]}  Kh7 {[%clk 0:00:36]} 71. e4 {[%clk 0:00:14]}  Kg7 {[%clk 0:00:31]} 72. e5 {[%clk 0:00:14]}  Kh7 {[%clk 0:00:31]} 73. e6 {[%clk 0:00:14]}  Kg7 {[%clk 0:00:32]} 74. e7 {[%clk 0:00:13]}  Kh7 {[%clk 0:00:33]} 75. Kd7 {[%clk 0:00:13]}  Kg7 {[%clk 0:00:34]} 76. e8=Q {[%clk 0:00:12]}  Kh7 {[%clk 0:00:35]} 77. Qg8# {[%clk 0:00:12]} 1-0


[Site "https://www.chess.com"]

[Event "Titled Tuesday Blitz August 09 Early 2022"]
[White "Maksimenko, Viktor"]
[Black "Gurel, Ediz"]
[WhiteFideId "13710478"]
[BlackFideId "44507356"]
[WhiteElo "2269"]
[BlackElo "1894"]
[Result "0-1"]
[Round "04"]
[TimeControl "180+1"]
[Date "2022.08.09"]
[WhiteClock "0:00:02"]
[BlackClock "0:00:05"]

1. d4 {[%clk 0:03:00]}  Nf6 {[%clk 0:02:58]} 2. c4 {[%clk 0:03:00]}  e6 {[%clk 0:02:58]} 3. Nf3 {[%clk 0:02:59]}  b6 {[%clk 0:02:58]} 4. a3 {[%clk 0:03:00]}  Bb7 {[%clk 0:02:59]} 5. Nc3 {[%clk 0:02:59]}  d5 {[%clk 0:02:59]} 6. Bg5 {[%clk 0:02:57]}  Be7 {[%clk 0:02:58]} 7. e3 {[%clk 0:02:57]}  O-O {[%clk 0:02:57]} 8. Qc2 {[%clk 0:02:57]}  Nbd7 {[%clk 0:02:57]} 9. cxd5 {[%clk 0:02:55]}  Nxd5 {[%clk 0:02:52]} 10. Bxe7 {[%clk 0:02:55]}  Qxe7 {[%clk 0:02:52]} 11. Nxd5 {[%clk 0:02:52]}  Bxd5 {[%clk 0:02:53]} 12. Qxc7 {[%clk 0:02:46]}  Rac8 {[%clk 0:02:41]} 13. Qxa7 {[%clk 0:02:46]}  Rc2 {[%clk 0:01:54]} 14. Bd3 {[%clk 0:02:38]}  Rxb2 {[%clk 0:01:31]} 15. O-O {[%clk 0:02:22]}  Bxf3 {[%clk 0:01:13]} 16. gxf3 {[%clk 0:02:20]}  Qg5+ {[%clk 0:01:13]} 17. Kh1 {[%clk 0:02:20]}  Nf6 {[%clk 0:01:00]} 18. Rab1 {[%clk 0:01:54]}  Rd2 {[%clk 0:00:58]} 19. Rbd1 {[%clk 0:01:48]}  Rxd3 {[%clk 0:00:27]} 20. Rxd3 {[%clk 0:01:40]}  Qf5 {[%clk 0:00:28]} 21. e4 {[%clk 0:00:27]}  Nxe4 {[%clk 0:00:28]} 22. Re3 {[%clk 0:00:24]}  Nd2 {[%clk 0:00:23]} 23. Rd1 {[%clk 0:00:19]}  Nxf3 {[%clk 0:00:19]} 24. Qb7 {[%clk 0:00:19]}  Ng5 {[%clk 0:00:13]} 25. Kg2 {[%clk 0:00:17]}  Qg4+ {[%clk 0:00:11]} 26. Rg3 {[%clk 0:00:11]}  Qxd1 {[%clk 0:00:12]} 27. Rxg5 {[%clk 0:00:11]}  Qxd4 {[%clk 0:00:13]} 28. Qf3 {[%clk 0:00:08]}  h6 {[%clk 0:00:13]} 29. Rg3 {[%clk 0:00:07]}  Rc8 {[%clk 0:00:13]} 30. Qb7 {[%clk 0:00:03]}  Qd5+ {[%clk 0:00:10]} 31. Qxd5 {[%clk 0:00:03]}  exd5 {[%clk 0:00:11]} 32. Rb3 {[%clk 0:00:04]}  Rc6 {[%clk 0:00:11]} 33. Kf3 {[%clk 0:00:03]}  Kf8 {[%clk 0:00:10]} 34. Ke3 {[%clk 0:00:04]}  Ke7 {[%clk 0:00:10]} 35. Kd4 {[%clk 0:00:04]}  Kd6 {[%clk 0:00:10]} 36. Rg3 {[%clk 0:00:04]}  g6 {[%clk 0:00:10]} 37. Rf3 {[%clk 0:00:04]}  f5 {[%clk 0:00:10]} 38. Rg3 {[%clk 0:00:04]}  g5 {[%clk 0:00:08]} 39. Rh3 {[%clk 0:00:04]}  Rc4+ {[%clk 0:00:08]} 40. Kd3 {[%clk 0:00:04]}  Rh4 {[%clk 0:00:09]} 41. Rf3 {[%clk 0:00:03]}  Rf4 {[%clk 0:00:03]} 42. Rh3 {[%clk 0:00:02]}  Rxf2 {[%clk 0:00:04]} 43. Rxh6+ {[%clk 0:00:02]}  Kc5 {[%clk 0:00:04]} 44. Rg6 {[%clk 0:00:02]}  g4 {[%clk 0:00:04]} 45. Rf6 {[%clk 0:00:02]}  Rxh2 {[%clk 0:00:03]} 46. Rxf5 {[%clk 0:00:02]}  Rh3+ {[%clk 0:00:03]} 47. Kc2 {[%clk 0:00:02]}  Rxa3 {[%clk 0:00:04]} 48. Rg5 {[%clk 0:00:03]}  g3 {[%clk 0:00:04]} 49. Kb2 {[%clk 0:00:03]}  Rf3 {[%clk 0:00:05]} 50. Kc2 {[%clk 0:00:03]}  b5 {[%clk 0:00:05]} 51. Rg4 {[%clk 0:00:04]}  b4 {[%clk 0:00:05]} 52. Kb2 {[%clk 0:00:03]}  b3 {[%clk 0:00:05]} 53. Ka3 {[%clk 0:00:02]}  d4 {[%clk 0:00:05]} 54. Kb2 {[%clk 0:00:02]}  Kc4 {[%clk 0:00:05]} 55. Rg8 {[%clk 0:00:02]}  Rf2+ {[%clk 0:00:05]} 56. Kb1 {[%clk 0:00:02]}  g2 {[%clk 0:00:05]} 57. Rg3 {[%clk 0:00:02]}  Rf1+ {[%clk 0:00:05]} 58. Kb2 {[%clk 0:00:02]}  g1=Q {[%clk 0:00:05]} 0-1


[Site "https://www.chess.com"]

[Event "Titled Tuesday Blitz August 09 Early 2022"]
[White "Malek, Jan"]
[Black "Danielyan, Vahe"]
[WhiteFideId "21864080"]
[BlackFideId "13304828"]
[WhiteElo "2143"]
[BlackElo "2421"]
[Result "0-1"]
[Round "04"]
[TimeControl "180+1"]
[Date "2022.08.09"]
[WhiteClock "0:00:01"]
[BlackClock "0:00:47"]

1. d4 {[%clk 0:03:00]}  d5 {[%clk 0:03:00]} 2. c4 {[%clk 0:03:00]}  dxc4 {[%clk 0:03:01]} 3. e4 {[%clk 0:02:59]}  e5 {[%clk 0:03:00]} 4. Nf3 {[%clk 0:02:58]}  exd4 {[%clk 0:03:01]} 5. Bxc4 {[%clk 0:02:57]}  Nc6 {[%clk 0:03:01]} 6. O-O {[%clk 0:02:54]}  Be6 {[%clk 0:03:01]} 7. Bxe6 {[%clk 0:02:53]}  fxe6 {[%clk 0:03:02]} 8. Qb3 {[%clk 0:02:52]}  Qd7 {[%clk 0:03:03]} 9. Qxb7 {[%clk 0:02:52]}  Rb8 {[%clk 0:03:03]} 10. Qa6 {[%clk 0:02:53]}  Nf6 {[%clk 0:03:04]} 11. Nbd2 {[%clk 0:02:27]}  Bd6 {[%clk 0:03:03]} 12. b3 {[%clk 0:02:25]}  Nh5 {[%clk 0:03:02]} 13. Nc4 {[%clk 0:02:10]}  O-O {[%clk 0:02:58]} 14. Nxd6 {[%clk 0:02:00]}  cxd6 {[%clk 0:02:59]} 15. Qe2 {[%clk 0:01:59]}  Nf6 {[%clk 0:02:55]} 16. e5 {[%clk 0:01:49]}  dxe5 {[%clk 0:02:46]} 17. Nxe5 {[%clk 0:01:50]}  Nxe5 {[%clk 0:02:47]} 18. Qxe5 {[%clk 0:01:51]}  Rb5 {[%clk 0:02:48]} 19. Qe1 {[%clk 0:01:45]}  Rf5 {[%clk 0:02:46]} 20. Ba3 {[%clk 0:01:40]}  Re8 {[%clk 0:02:46]} 21. Rc1 {[%clk 0:01:37]}  d3 {[%clk 0:02:45]} 22. Qe3 {[%clk 0:01:33]}  e5 {[%clk 0:02:40]} 23. f3 {[%clk 0:01:33]}  e4 {[%clk 0:02:37]} 24. fxe4 {[%clk 0:01:25]}  Rxe4 {[%clk 0:02:38]} 25. Qd2 {[%clk 0:00:51]}  Re2 {[%clk 0:02:33]} 26. Qb4 {[%clk 0:00:50]}  Rxg2+ {[%clk 0:02:07]} 27. Kh1 {[%clk 0:00:26]}  Rxh2+ {[%clk 0:02:05]} 28. Kxh2 {[%clk 0:00:20]}  Rh5+ {[%clk 0:02:05]} 29. Kg1 {[%clk 0:00:19]}  Rg5+ {[%clk 0:02:03]} 30. Kf2 {[%clk 0:00:16]}  Qf5+ {[%clk 0:01:51]} 31. Ke3 {[%clk 0:00:12]}  Rg3+ {[%clk 0:01:42]} 32. Kd2 {[%clk 0:00:08]}  Rg2+ {[%clk 0:01:42]} 33. Kc3 {[%clk 0:00:08]}  Nd5+ {[%clk 0:01:37]} 34. Kd4 {[%clk 0:00:04]}  Rg4+ {[%clk 0:01:26]} 35. Kc5 {[%clk 0:00:05]}  Nf4+ {[%clk 0:01:15]} 36. Kc6 {[%clk 0:00:04]}  Rg6+ {[%clk 0:01:12]} 37. Kb7 {[%clk 0:00:04]}  Qd5+ {[%clk 0:01:06]} 38. Kb8 {[%clk 0:00:03]}  Rb6+ {[%clk 0:00:58]} 39. Qxb6 {[%clk 0:00:02]}  axb6 {[%clk 0:00:59]} 40. Rc8+ {[%clk 0:00:02]}  Kf7 {[%clk 0:00:59]} 41. Rxf4+ {[%clk 0:00:03]}  Kg6 {[%clk 0:00:58]} 42. Rf1 {[%clk 0:00:02]}  d2 {[%clk 0:00:54]} 43. Rd1 {[%clk 0:00:02]}  Qe5+ {[%clk 0:00:53]} 44. Rc7 {[%clk 0:00:02]}  Qe2 {[%clk 0:00:49]} 45. Rg1+ {[%clk 0:00:01]}  Kf5 {[%clk 0:00:49]} 46. Re7 {[%clk 0:00:01]}  Qh2+ {[%clk 0:00:47]} 0-1


[Site "https://www.chess.com"]

[Event "Titled Tuesday Blitz August 09 Early 2022"]
[White "Malka, Samuel"]
[Black "Remolar Gallen, Jose"]
[WhiteFideId "20643675"]
[BlackFideId "2215187"]
[WhiteElo "2495"]
[BlackElo "2205"]
[Result "1/2-1/2"]
[Round "04"]
[TimeControl "180+1"]
[Date "2022.08.09"]
[WhiteClock "0:00:32"]
[BlackClock "0:00:24"]

1. Nf3 {[%clk 0:03:00]}  Nf6 {[%clk 0:02:59]} 2. c4 {[%clk 0:02:59]}  g6 {[%clk 0:02:59]} 3. Nc3 {[%clk 0:02:59]}  Bg7 {[%clk 0:03:00]} 4. e4 {[%clk 0:03:00]}  d6 {[%clk 0:03:00]} 5. d4 {[%clk 0:03:00]}  O-O {[%clk 0:03:01]} 6. Be2 {[%clk 0:03:01]}  e5 {[%clk 0:03:02]} 7. O-O {[%clk 0:02:55]}  Nc6 {[%clk 0:03:01]} 8. d5 {[%clk 0:02:53]}  Ne7 {[%clk 0:03:02]} 9. Ne1 {[%clk 0:02:54]}  Ne8 {[%clk 0:03:02]} 10. Be3 {[%clk 0:02:52]}  f5 {[%clk 0:03:01]} 11. f3 {[%clk 0:02:52]}  f4 {[%clk 0:03:00]} 12. Bf2 {[%clk 0:02:53]}  g5 {[%clk 0:03:01]} 13. c5 {[%clk 0:02:53]}  h5 {[%clk 0:03:02]} 14. a4 {[%clk 0:02:46]}  Ng6 {[%clk 0:02:46]} 15. a5 {[%clk 0:02:42]}  Nf6 {[%clk 0:02:40]} 16. cxd6 {[%clk 0:02:41]}  cxd6 {[%clk 0:02:40]} 17. Nb5 {[%clk 0:02:42]}  g4 {[%clk 0:02:31]} 18. Nxa7 {[%clk 0:02:42]}  g3 {[%clk 0:02:29]} 19. Bb6 {[%clk 0:02:40]}  gxh2+ {[%clk 0:02:06]} 20. Kh1 {[%clk 0:02:39]}  Qe7 {[%clk 0:01:50]} 21. Nxc8 {[%clk 0:02:33]}  Raxc8 {[%clk 0:01:47]} 22. Nd3 {[%clk 0:02:21]}  h4 {[%clk 0:01:45]} 23. Nf2 {[%clk 0:02:15]}  Nh5 {[%clk 0:01:40]} 24. Kxh2 {[%clk 0:02:15]}  Ng3 {[%clk 0:01:33]} 25. Re1 {[%clk 0:02:07]}  h3 {[%clk 0:01:24]} 26. Nxh3 {[%clk 0:01:52]}  Kf7 {[%clk 0:00:49]} 27. Rc1 {[%clk 0:01:44]}  Bf6 {[%clk 0:00:37]} 28. Bb5 {[%clk 0:01:26]}  Bh4 {[%clk 0:00:33]} 29. Qd2 {[%clk 0:01:23]}  Rxc1 {[%clk 0:00:14]} 30. Rxc1 {[%clk 0:01:22]}  Rc8 {[%clk 0:00:15]} 31. Rxc8 {[%clk 0:01:21]}  Nf1+ {[%clk 0:00:15]} 32. Kg1 {[%clk 0:01:17]}  Nxd2 {[%clk 0:00:16]} 33. Rc7 {[%clk 0:01:17]}  Nf8 {[%clk 0:00:08]} 34. Rxe7+ {[%clk 0:01:08]}  Kxe7 {[%clk 0:00:09]} 35. Bd3 {[%clk 0:01:02]}  Nd7 {[%clk 0:00:09]} 36. Ba7 {[%clk 0:00:49]}  Nb3 {[%clk 0:00:08]} 37. Bb6 {[%clk 0:00:41]}  Nxb6 {[%clk 0:00:05]} 38. axb6 {[%clk 0:00:42]}  Nc5 {[%clk 0:00:04]} 39. Bb5 {[%clk 0:00:39]}  Be1 {[%clk 0:00:05]} 40. Nf2 {[%clk 0:00:34]}  Ba5 {[%clk 0:00:05]} 41. Nd3 {[%clk 0:00:32]}  Bxb6 {[%clk 0:00:05]} 42. Nxc5 {[%clk 0:00:33]}  Bxc5+ {[%clk 0:00:06]} 43. Kf1 {[%clk 0:00:34]}  Kd8 {[%clk 0:00:07]} 44. Ke2 {[%clk 0:00:34]}  Kc7 {[%clk 0:00:07]} 45. Kd3 {[%clk 0:00:35]}  Kb6 {[%clk 0:00:08]} 46. Kc4 {[%clk 0:00:36]}  Ka5 {[%clk 0:00:08]} 47. b4+ {[%clk 0:00:36]}  Bxb4 {[%clk 0:00:08]} 48. Bd7 {[%clk 0:00:36]}  Bc5 {[%clk 0:00:08]} 49. Bb5 {[%clk 0:00:36]}  Kb6 {[%clk 0:00:08]} 50. Bd7 {[%clk 0:00:36]}  Kc7 {[%clk 0:00:08]} 51. Ba4 {[%clk 0:00:36]}  Kd8 {[%clk 0:00:08]} 52. Kb5 {[%clk 0:00:37]}  Kc7 {[%clk 0:00:08]} 53. Bd1 {[%clk 0:00:37]}  Be3 {[%clk 0:00:09]} 54. Be2 {[%clk 0:00:37]}  Bc5 {[%clk 0:00:09]} 55. Bc4 {[%clk 0:00:36]}  Kd7 {[%clk 0:00:10]} 56. Bb3 {[%clk 0:00:35]}  Ke7 {[%clk 0:00:10]} 57. Ba4 {[%clk 0:00:36]}  Kf6 {[%clk 0:00:11]} 58. Kc4 {[%clk 0:00:37]}  Kg5 {[%clk 0:00:12]} 59. Bd7 {[%clk 0:00:22]}  Kh4 {[%clk 0:00:12]} 60. Bh3 {[%clk 0:00:23]}  Kg3 {[%clk 0:00:12]} 61. Kb5 {[%clk 0:00:23]}  Kf2 {[%clk 0:00:12]} 62. Kc4 {[%clk 0:00:24]}  Ke3 {[%clk 0:00:13]} 63. Kb5 {[%clk 0:00:25]}  Kd4 {[%clk 0:00:13]} 64. Be6 {[%clk 0:00:23]}  Ba7 {[%clk 0:00:12]} 65. Bc8 {[%clk 0:00:23]}  Ke3 {[%clk 0:00:11]} 66. Bxb7 {[%clk 0:00:20]}  Kf2 {[%clk 0:00:11]} 67. Bc8 {[%clk 0:00:20]}  Kxg2 {[%clk 0:00:11]} 68. Bg4 {[%clk 0:00:21]}  Kf2 {[%clk 0:00:10]} 69. Kc6 {[%clk 0:00:22]}  Bc5 {[%clk 0:00:11]} 70. Kd7 {[%clk 0:00:22]}  Ke3 {[%clk 0:00:11]} 71. Kc6 {[%clk 0:00:23]}  Kd4 {[%clk 0:00:12]} 72. Kd7 {[%clk 0:00:23]}  Kc3 {[%clk 0:00:13]} 73. Ke6 {[%clk 0:00:24]}  Kb4 {[%clk 0:00:13]} 74. Kf5 {[%clk 0:00:25]}  Kc3 {[%clk 0:00:14]} 75. Ke6 {[%clk 0:00:26]}  Kd4 {[%clk 0:00:15]} 76. Kd7 {[%clk 0:00:26]}  Ke3 {[%clk 0:00:16]} 77. Kc6 {[%clk 0:00:27]}  Kf2 {[%clk 0:00:17]} 78. Kb5 {[%clk 0:00:28]}  Kg3 {[%clk 0:00:18]} 79. Kc4 {[%clk 0:00:29]}  Kf2 {[%clk 0:00:19]} 80. Kd3 {[%clk 0:00:29]}  Kg3 {[%clk 0:00:20]} 81. Kc4 {[%clk 0:00:30]}  Kf2 {[%clk 0:00:21]} 82. Kd3 {[%clk 0:00:30]}  Kg3 {[%clk 0:00:22]} 83. Ke2 {[%clk 0:00:30]}  Kg2 {[%clk 0:00:21]} 84. Ke1 {[%clk 0:00:31]}  Kg3 {[%clk 0:00:22]} 85. Ke2 {[%clk 0:00:31]}  Kg2 {[%clk 0:00:23]} 86. Kd3 {[%clk 0:00:32]}  Kg3 {[%clk 0:00:24]} 1/2-1/2


[Site "https://www.chess.com"]

[Event "Titled Tuesday Blitz August 09 Early 2022"]
[White "Malyi, Viacheslav"]
[Black "Volkov, Maksim"]
[WhiteFideId "14123983"]
[BlackFideId "54123070"]
[WhiteElo "2190"]
[BlackElo "2155"]
[Result "1/2-1/2"]
[Round "04"]
[TimeControl "180+1"]
[Date "2022.08.09"]
[WhiteClock "0:00:16"]
[BlackClock "0:00:22"]

1. e4 {[%clk 0:03:00]}  c5 {[%clk 0:02:59]} 2. Nf3 {[%clk 0:02:56]}  d6 {[%clk 0:03:00]} 3. d4 {[%clk 0:02:56]}  cxd4 {[%clk 0:03:01]} 4. Nxd4 {[%clk 0:02:57]}  Nf6 {[%clk 0:03:01]} 5. Nc3 {[%clk 0:02:58]}  a6 {[%clk 0:03:02]} 6. Rg1 {[%clk 0:02:58]}  e5 {[%clk 0:03:01]} 7. Nb3 {[%clk 0:02:58]}  h5 {[%clk 0:03:00]} 8. h3 {[%clk 0:02:58]}  Be6 {[%clk 0:02:58]} 9. g4 {[%clk 0:02:57]}  hxg4 {[%clk 0:02:58]} 10. hxg4 {[%clk 0:02:58]}  Nc6 {[%clk 0:02:50]} 11. g5 {[%clk 0:02:58]}  Nd7 {[%clk 0:02:50]} 12. Be3 {[%clk 0:02:59]}  Rc8 {[%clk 0:02:41]} 13. Qd2 {[%clk 0:02:59]}  b5 {[%clk 0:02:41]} 14. O-O-O {[%clk 0:02:59]}  Na5 {[%clk 0:02:34]} 15. Kb1 {[%clk 0:02:55]}  Nc4 {[%clk 0:02:33]} 16. Qe2 {[%clk 0:02:34]}  Nxe3 {[%clk 0:02:15]} 17. Qxe3 {[%clk 0:02:27]}  Qc7 {[%clk 0:02:15]} 18. Rd2 {[%clk 0:02:23]}  Nb6 {[%clk 0:02:15]} 19. Nd5 {[%clk 0:02:15]}  Nxd5 {[%clk 0:02:03]} 20. exd5 {[%clk 0:02:16]}  Bf5 {[%clk 0:02:03]} 21. Bd3 {[%clk 0:02:07]}  Rh3 {[%clk 0:01:59]} 22. Qe2 {[%clk 0:02:00]}  Bxd3 {[%clk 0:01:47]} 23. Rxd3 {[%clk 0:01:53]}  Rh2 {[%clk 0:01:44]} 24. a3 {[%clk 0:01:21]}  g6 {[%clk 0:01:42]} 25. Rc3 {[%clk 0:01:11]}  Qd7 {[%clk 0:01:41]} 26. Rxc8+ {[%clk 0:01:11]}  Qxc8 {[%clk 0:01:42]} 27. Qe3 {[%clk 0:01:11]}  Qc7 {[%clk 0:01:37]} 28. Qg3 {[%clk 0:00:55]}  Rh5 {[%clk 0:01:34]} 29. Nd2 {[%clk 0:00:49]}  Bg7 {[%clk 0:01:32]} 30. Ne4 {[%clk 0:00:49]}  Ke7 {[%clk 0:01:29]} 31. Re1 {[%clk 0:00:42]}  Qc4 {[%clk 0:01:27]} 32. Qd3 {[%clk 0:00:41]}  Qxd3 {[%clk 0:01:21]} 33. cxd3 {[%clk 0:00:42]}  Rh3 {[%clk 0:01:21]} 34. Kc2 {[%clk 0:00:42]}  Kd7 {[%clk 0:01:15]} 35. Kd2 {[%clk 0:00:42]}  Bf8 {[%clk 0:01:15]} 36. Ke2 {[%clk 0:00:42]}  Be7 {[%clk 0:01:15]} 37. Rc1 {[%clk 0:00:42]}  Rh5 {[%clk 0:01:14]} 38. Rc6 {[%clk 0:00:42]}  a5 {[%clk 0:01:10]} 39. Rb6 {[%clk 0:00:39]}  b4 {[%clk 0:01:08]} 40. axb4 {[%clk 0:00:40]}  axb4 {[%clk 0:01:09]} 41. Rxb4 {[%clk 0:00:40]}  Bxg5 {[%clk 0:01:10]} 42. Rb7+ {[%clk 0:00:40]}  Kd8 {[%clk 0:01:07]} 43. Nxd6 {[%clk 0:00:35]}  f5 {[%clk 0:01:05]} 44. Nf7+ {[%clk 0:00:31]}  Kc8 {[%clk 0:01:05]} 45. Rb6 {[%clk 0:00:26]}  Bf4 {[%clk 0:00:50]} 46. Rxg6 {[%clk 0:00:22]}  e4 {[%clk 0:00:51]} 47. dxe4 {[%clk 0:00:21]}  fxe4 {[%clk 0:00:52]} 48. Re6 {[%clk 0:00:20]}  Rxd5 {[%clk 0:00:43]} 49. Rxe4 {[%clk 0:00:19]}  Bh2 {[%clk 0:00:37]} 50. Kf3 {[%clk 0:00:18]}  Rb5 {[%clk 0:00:35]} 51. b4 {[%clk 0:00:17]}  Kd7 {[%clk 0:00:35]} 52. Nh6 {[%clk 0:00:15]}  Bd6 {[%clk 0:00:33]} 53. Ng4 {[%clk 0:00:15]}  Bxb4 {[%clk 0:00:33]} 54. Nf6+ {[%clk 0:00:14]}  Kd8 {[%clk 0:00:33]} 55. Ng4 {[%clk 0:00:15]}  Bd6 {[%clk 0:00:32]} 56. Ne3 {[%clk 0:00:15]}  Kd7 {[%clk 0:00:32]} 57. Rd4 {[%clk 0:00:14]}  Ke6 {[%clk 0:00:31]} 58. Re4+ {[%clk 0:00:14]}  Kf6 {[%clk 0:00:31]} 59. Rd4 {[%clk 0:00:14]}  Bb8 {[%clk 0:00:29]} 60. Re4 {[%clk 0:00:14]}  Rb3 {[%clk 0:00:28]} 61. Ke2 {[%clk 0:00:14]}  Rb2+ {[%clk 0:00:28]} 62. Kf3 {[%clk 0:00:14]}  Ba7 {[%clk 0:00:28]} 63. Rc4 {[%clk 0:00:13]}  Ke5 {[%clk 0:00:28]} 64. Rc7 {[%clk 0:00:13]}  Ra2 {[%clk 0:00:25]} 65. Rc8 {[%clk 0:00:13]}  Ke6 {[%clk 0:00:21]} 66. Re8+ {[%clk 0:00:13]}  Kf7 {[%clk 0:00:21]} 67. Rc8 {[%clk 0:00:13]}  Kf6 {[%clk 0:00:21]} 68. Rc6+ {[%clk 0:00:13]}  Ke5 {[%clk 0:00:21]} 69. Rc8 {[%clk 0:00:14]}  Kd4 {[%clk 0:00:21]} 70. Rd8+ {[%clk 0:00:14]}  Ke5 {[%clk 0:00:21]} 71. Rd7 {[%clk 0:00:14]}  Ke6 {[%clk 0:00:21]} 72. Rd8 {[%clk 0:00:14]}  Ke7 {[%clk 0:00:21]} 73. Rc8 {[%clk 0:00:14]}  Ke6 {[%clk 0:00:20]} 74. Re8+ {[%clk 0:00:14]}  Kf7 {[%clk 0:00:20]} 75. Rh8 {[%clk 0:00:14]}  Kg7 {[%clk 0:00:20]} 76. Rc8 {[%clk 0:00:14]}  Kf6 {[%clk 0:00:21]} 77. Rc7 {[%clk 0:00:14]}  Ke6 {[%clk 0:00:20]} 78. Rc8 {[%clk 0:00:15]}  Ke7 {[%clk 0:00:21]} 79. Rc7+ {[%clk 0:00:15]}  Kd6 {[%clk 0:00:21]} 80. Rh7 {[%clk 0:00:15]}  Ke6 {[%clk 0:00:21]} 81. Rh6+ {[%clk 0:00:15]}  Ke7 {[%clk 0:00:20]} 82. Rh7+ {[%clk 0:00:15]}  Ke6 {[%clk 0:00:21]} 83. Rh6+ {[%clk 0:00:15]}  Ke7 {[%clk 0:00:21]} 84. Rh7+ {[%clk 0:00:16]}  Ke6 {[%clk 0:00:22]} 1/2-1/2


[Site "https://www.chess.com"]